[Event "Romanian Team Blitz Open 2022"]
[Site "Sebes"]
[Date "2022.12.04"]
[Round "3.23"]
[White "Vrencian, Lehel"]
[Black "Chiheri, Alexandru-Virgil"]
[Result "1-0"]
[ECO "B22"]
[WhiteElo "2226"]
[BlackElo "1937"]
[Annotator "TA"]
[PlyCount "83"]
[EventDate "2022.12.04"]
[EventType "blitz"]
[EventCountry "ROU"]
[SourceTitle "playchess.com"]
[Source "ChessBase"]
[SourceQuality "1"]
[TimeControl "180+2"]

{[%evp 13,82,4,8,0,3,0,0,0,0,-4,-21,-27,-15,-16,-6,-55,16,0,66,57,63,0,0,7,170,170,150,129,134,134,144,129,137,139,133,128,150,128,183,184,254,126,271,181,215,181,165,-79,0,0,45,45,842,741,745,-29998,29997,29992,29992,29993,29993,5650,29990,29991,29992,29993,29993,29994,29996,29997,29999]} 1. e4 {[%emt 0:00:02]} c5 {[%emt 0:03:04]} 2. Nf3 e6 {[%emt 0:00:00]} 3. c3 {[%emt 0:00:04]} Nf6 {[%emt 0:00:00]} 4. e5 {[%emt 0:00:01]} Nd5 {[%emt 0:00:00]} 5. d4 {[%emt 0:00:01]} cxd4 {[%emt 0:00:00]} 6. cxd4 {[%emt 0:00:01]} d6 {[%emt 0:00:00]} 7. a3 {[%emt 0:00:16]} Be7 {[%emt 0:00:00]} 8. Bd3 {[%emt 0:00:00] B22: Sicilian: 2 c3.} Nd7 {[%emt 0:00:00] [#]} 9. exd6 $146 {[%emt 0:00:09]} ({Predecessor:} 9. O-O b6 10. Nbd2 dxe5 11. Nxe5 Qc7 12. Ndf3 O-O 13. Bd2 Bb7 14. Rc1 Qd6 15. Nc4 Qb8 16. Nce5 Qd6 17. Nc4 Qb8 18. Nce5 Qd6 {½-½ (18) Tiviakov,S (2635)-Epishin,V (2626) Dos Hermanas 2003}) 9... Bxd6 {[%emt 0:00:00]} 10. O-O {[%emt 0:00:03] The position is equal.} b6 {[%emt 0:00:00]} 11. Nc3 {[%emt 0:00:05]} Nxc3 {[%emt 0:00:00]} 12. bxc3 {[%emt 0:00:01]} Bb7 {[%emt 0:00:00]} 13. c4 {[%emt 0:02:45]} Qc7 14. d5 {[%emt 0:00:00]} (14. Bb2 $11) 14... e5 {[%emt 0:00:00]} (14... Nc5 $15) 15. Nh4 {[%emt 0:00:00]} Nc5 {[%emt 0:00:00]} (15... g6 $11) 16. Nf5 $14 {[%emt 0:00:00]} Bf8 {[%emt 0:00:00]} 17. Bc2 {[%emt 0:00:00] White is more active.} (17. Bb2 $14 O-O-O 18. a4) 17... O-O-O $11 {[%emt 0:00:00]} 18. a4 {[%emt 0:00:00][%cal Ba3a4,Ba4a5][%mdl 32]} h6 $2 {[%emt 0:00:00] Against a5} (18... a5 $11 {and Black stays safe.}) 19. a5 $1 $18 {[%emt 0:00:00]} g6 {[%emt 0:00:00]} 20. Ne3 {[%emt 0:00:00]} f5 {[%emt 0:00:00]} 21. axb6 {[%emt 0:00:00]} axb6 {[%emt 0:00:00]} 22. Re1 {[%emt 0:00:00]} Bd6 {[%emt 0:00:00]} 23. Nf1 {[%emt 0:00:00]} e4 {[%emt 0:00:00]} 24. Bb2 {[%emt 0:00:00]} Rhf8 {[%emt 0:00:00]} 25. Bd4 {[%emt 0:00:00]} Rde8 {[%emt 0:00:00]} (25... Be5 $16) 26. Qb1 {[%emt 0:00:00]} h5 {[%emt 0:00:05] [#]} (26... Be5 {might work better.} 27. Bxe5 Rxe5) 27. Qb5 {[%emt 0:00:00]} (27. Qb2 $1 $18 {and the rest is easy.}) 27... f4 {[%emt 0:00:08]} (27... Be5 $16 {is a better defense.} 28. Bxe5 Rxe5) 28. Reb1 {[%emt 0:00:00]} e3 {[%emt 0:00:06]} 29. fxe3 {[%emt 0:00:01]} fxe3 {[%emt 0:00:01]} 30. Bxe3 {[%emt 0:00:04] [#]} (30. Bxg6 $18 Re7 31. Nxe3 (31. Bxe3 Rxf1+ 32. Kxf1 Rxe3 $14) (31. Qxb6 Qxb6 32. Rxb6 e2 $14) 31... Bxh2+ 32. Kh1) 30... Rxe3 {[%emt 0:00:21]} 31. Nxe3 $11 {[%emt 0:00:02]} Bxh2+ {[%emt 0:00:01]} (31... Qe7 $5 {[%cal Re7e3]} 32. Nf1 Qe5 $11) 32. Kh1 {[%emt 0:00:01]} Qg3 {[%emt 0:00:06][%mdl 8192]} (32... Qe7 $14 33. Rf1 (33. Kxh2 Qh4+ 34. Kg1 Qf2+ 35. Kh2 Qh4+ 36. Kg1 Qf2+ 37. Kh2 Qh4+ $11) (33. Bxg6 Bc7 $11) (33. Qxb6 $2 Bg3 $19) 33... Rxf1+ 34. Rxf1 Bd6) 33. Qxb6 {[%emt 0:00:10]} Qh4 {[%emt 0:00:06]} 34. Qxc5+ $4 {[%emt 0:00:01][%mdl 8192]} (34. Bf5+ $18 gxf5 35. Qxc5+ Bc7+ 36. Kg1 Qh2+ 37. Kf2) 34... Kb8 $4 {[%emt 0:00:03][%mdl 8192]} (34... Bc7+ {avoids the disaster.} 35. Kg1 Qh2#) 35. Qxf8+ {[%emt 0:00:04]} Kc7 {[%emt 0:00:01]} 36. Qf7+ {[%emt 0:00:10]} Kd8 {[%emt 0:00:01]} 37. Qf3 {[%emt 0:00:08]} (37. Qxb7 $2 {is a self mate.} Bf4+ 38. Kg1 Bxe3+ 39. Kf1 Qf2#) (37. Bf5 $142 Bd6+ 38. Bh3 Bc8 39. Ra7 Qxh3+ 40. gxh3 Bb7 41. Rbxb7 Bc7 42. Qxc7+ Ke8 43. Qe7#) 37... Bg3+ {[%emt 0:00:02]} 38. Kg1 {[%emt 0:00:00][%cal Bh1g1,Bg1f1,Bf1e2][%mdl 32] White mates.} Qh2+ 39. Kf1 {[%emt 0:00:11]} Qh1+ {[%emt 0:00:02]} 40. Ke2 {[%emt 0:00:00]} Qh4 {[%emt 0:00:01]} 41. Rxb7 {[%emt 0:00:00][%cal Rf3f8]} Qd4 {[%emt 0:00:02]} 42. Qf8# {[%emt 0:00:00] Weighted Error Value: White=0.44/Black=0.56} 1-0

[Event "Romanian Team Blitz Open 2022"]
[Site "Sebes"]
[Date "2022.12.04"]
[Round "3.24"]
[White "Duma, Ioan-Gheorghe"]
[Black "Craciun, Sasha-Matei"]
[Result "0-1"]
[ECO "D02"]
[WhiteElo "1782"]
[BlackElo "2001"]
[Annotator "TA"]
[PlyCount "45"]
[EventDate "2022.12.04"]
[EventType "blitz"]
[EventCountry "ROU"]
[SourceTitle "playchess.com"]
[Source "ChessBase"]
[SourceQuality "1"]
[TimeControl "180+2"]

{[%evp 9,45,0,9,0,2,-1,3,-53,8,6,9,-89,-11,-10,0,-5,-13,-67,-66,-64,0,8,187,187,186,0,32,-44,-19,-57,238,0,0,-57,-43,-48,76,-53]} 1. d4 {[%emt 0:00:01]} d5 {[%emt 0:00:00]} 2. Nf3 {[%emt 0:00:02]} Nf6 {[%emt 0:00:01]} 3. Bf4 {[%emt 0:00:01]} c5 {[%emt 0:00:02]} 4. e3 {[%emt 0:00:01]} Nc6 {[%emt 0:00:01]} 5. dxc5 {[%emt 0:00:19]} e6 {[%emt 0:00:04]} 6. c4 {[%emt 0:00:01] D02: 1 d4 d5 2 Nf3 sidelines, including 2...Nf6 3 g3 and 2...Nf6 3 Bf4.} Bxc5 {[%emt 0:00:04]} 7. cxd5 {[%emt 0:00:02]} Nxd5 {[%emt 0:00:01] [#]} 8. Bg5 $146 {[%emt 0:00:15]} (8. Bg3 $1 $11) ({Predecessor:} 8. Bg3 O-O 9. Nbd2 b6 10. Bc4 Nce7 11. Qe2 Bb7 12. O-O Nf5 13. Be5 Bd6 14. Bxd6 Nxd6 15. Ba6 Qc8 {½-½ (15) Sesko,M (2243)-Ovaskainen,J (2302) ICCF email 2019}) 8... Qa5+ {[%emt 0:00:02]} (8... f6 $15 9. Bh4 e5) 9. Nbd2 $11 {[%emt 0:00:02]} O-O $132 {[%emt 0:00:04][%mdl 2048] Black is not holding back} 10. Bc4 {[%emt 0:00:07]} (10. a3 $11) 10... Nb6 {[%emt 0:00:08] Black has more active pieces.} (10... h6 $1 $17 {[%cal Rh6g5]} 11. Bh4 Bxe3 $1) 11. Be2 {[%emt 0:00:17]} Bb4 {[%emt 0:00:06]} 12. e4 {[%emt 0:00:12]} Nd4 {[%emt 0:00:31] White must now prevent ...Nxf3+.} 13. Be3 {[%emt 0:00:17]} (13. O-O $11) 13... Nxf3+ $15 {[%emt 0:00:02]} 14. gxf3 {[%emt 0:00:21]} e5 {[%emt 0:00:08]} (14... Bc5 $15) 15. a3 $11 {[%emt 0:00:01]} Bxd2+ {[%emt 0:00:15]} (15... Be7 $11 {and Black is okay.}) 16. Bxd2 $18 {[%emt 0:00:01]} Qa4 {[%emt 0:00:08]} 17. b3 $2 {[%emt 0:00:09]} ({White has to play} 17. Bb4 $1 $18) 17... Qc6 $14 {[%emt 0:00:04]} 18. Rc1 {[%emt 0:00:01]} (18. Rg1 $14) 18... Qf6 {[%emt 0:00:07]} (18... Qg6 $5 {[%cal Rg6g2]} 19. Bf1 Rd8 $15) 19. h4 {[%emt 0:00:07]} Rd8 $2 {[%emt 0:00:22][%mdl 8192] [#]} (19... Be6 $15) 20. Qc2 $2 {[%emt 0:00:07]} ({Only move:} 20. Bg5 $1 $18 Rxd1+ 21. Rxd1) 20... h6 $11 {[%emt 0:00:01]} 21. Be3 {[%emt 0:00:13]} ({White should play} 21. Qc3 $11) 21... Be6 $15 {[%emt 0:00:04]} 22. Qb2 {[%emt 0:00:37]} Qe7 {[%emt 0:00:16]} (22... Nd7 $1 $15 {stays ahead.}) 23. b4 {[%emt 0:00:34] Weighted Error Value: White=0.61/Black=0.61} (23. Rg1 $16 Kh8 24. Qxe5 (24. Bxb6 axb6 25. Qxe5 f6 $15)) 0-1

[Event "Romanian Team Blitz Open 2022"]
[Site "Sebes"]
[Date "2022.12.04"]
[Round "3.25"]
[White "Zaim, Marian"]
[Black "Stanca, Adrian"]
[Result "1/2-1/2"]
[ECO "E65"]
[WhiteElo "1935"]
[BlackElo "2182"]
[Annotator "TA"]
[PlyCount "98"]
[EventDate "2022.12.04"]
[EventType "blitz"]
[EventCountry "ROU"]
[SourceTitle "playchess.com"]
[Source "ChessBase"]
[SourceQuality "1"]
[TimeControl "180+2"]

{[%evp 20,98,63,56,71,62,78,70,72,65,62,45,49,50,52,54,48,43,47,34,57,41,46,53,53,50,46,46,98,91,68,18,21,13,41,17,41,0,0,0,0,0,0,0,0,0,0,0,7,7,8,7,25,0,0,0,0,0,0,0,0,0,0,0,0,0,0,0,0,0,0,0,0,0,0,0,0,0,0,0,0]} 1. Nf3 {[%emt 0:00:01]} Nf6 {[%emt 0:00:01]} 2. g3 {[%emt 0:00:02]} g6 {[%emt 0:00:00]} 3. Bg2 {[%emt 0:00:01]} Bg7 {[%emt 0:00:02]} 4. O-O {[%emt 0:00:02]} O-O {[%emt 0:00:01]} 5. c4 {[%emt 0:00:03]} d6 {[%emt 0:00:02]} 6. d4 {[%emt 0:00:01]} Nbd7 {[%emt 0:00:01]} 7. Nc3 {[%emt 0:00:02]} c5 {[%emt 0:00:09]} 8. e4 {[%emt 0:00:08]} cxd4 {[%emt 0:00:09]} 9. Nxd4 {[%emt 0:00:02][%cal Bf3d4,Bd4c2,Bc2e3][%mdl 32]} Ne5 {[%emt 0:00:44]} 10. b3 {[%emt 0:00:03]} Bd7 {[%emt 0:00:00]} 11. Bb2 {[%emt 0:00:04]} Nc6 {[%emt 0:00:02] E65: King's Indian: Fianchetto: 6...c5 7 0-0 without d5 by White.} 12. Nc2 {[%emt 0:00:12] [#]} Rb8 $146 {[%emt 0:00:09]} ({Predecessor:} 12... Bg4 13. Qd2 Qd7 14. f3 Bh3 15. Rad1 Bxg2 16. Kxg2 Rad8 17. Rfe1 a6 18. Ba1 e6 {1-0 (32) Silva,K (1822)-Deshappriya,D (1522) Negambo 2017}) 13. Qd2 {[%emt 0:00:03]} a6 {[%emt 0:00:02] White is slightly better.} 14. Ne3 {[%emt 0:00:33]} b5 {[%emt 0:00:08]} 15. Ncd5 {[%emt 0:00:08]} Nxd5 {[%emt 0:00:11]} 16. cxd5 {[%emt 0:00:03][%cal Ob2g7]} Qa5 {[%emt 0:00:17]} 17. Qxa5 {[%emt 0:00:20]} Nxa5 {[%emt 0:00:01]} 18. Bxg7 {[%emt 0:00:02]} Kxg7 {[%emt 0:00:02]} 19. Rac1 {[%emt 0:00:02]} Rbc8 {[%emt 0:00:01] Inhibits Rc7.} 20. Rfd1 {[%emt 0:00:09]} Rxc1 {[%emt 0:00:05]} 21. Rxc1 {[%emt 0:00:01] aiming for Rc7.} Rc8 {[%emt 0:00:02] Inhibits Rc7.} 22. Rxc8 {[%emt 0:00:01]} Bxc8 $14 {[%emt 0:00:01][%mdl 4096] Endgame KBN-KBN} 23. Bf1 {[%emt 0:00:05]} h5 {[%emt 0:00:22]} (23... Nb7 $14) 24. b4 $16 {[%emt 0:00:03]} Nb7 {[%emt 0:00:06]} 25. Nc2 {[%emt 0:00:03]} (25. a4 $14) 25... Nd8 $11 {[%emt 0:00:02]} 26. f4 {[%emt 0:00:06]} Bb7 {[%emt 0:00:03]} 27. Bd3 {[%emt 0:00:16]} e6 {[%emt 0:00:09]} 28. dxe6 {[%emt 0:00:01]} fxe6 {[%emt 0:00:03]} 29. Kf2 {[%emt 0:00:05]} e5 {[%emt 0:00:09]} 30. Ke3 {[%emt 0:00:08]} Kf6 {[%emt 0:00:02]} 31. Ne1 {[%emt 0:00:05]} Ne6 {[%emt 0:00:22]} 32. Nf3 {[%emt 0:00:03]} Bc8 {[%emt 0:00:08]} 33. Bc2 {[%emt 0:00:09]} Bb7 {[%emt 0:00:03]} 34. Bb3 {[%emt 0:00:04]} Bc8 {[%emt 0:00:03]} 35. a3 {[%emt 0:00:04]} Bd7 {[%emt 0:00:04]} 36. fxe5+ {[%emt 0:00:10]} dxe5 {[%emt 0:00:01] The position is equal.} 37. Bxe6 {[%emt 0:00:05]} Bxe6 {[%emt 0:00:02] KB-KN} 38. h4 {[%emt 0:00:05]} Bc4 {[%emt 0:00:03]} 39. Ng5 {[%emt 0:00:05]} Bg8 {[%emt 0:00:02]} 40. Nf3 {[%emt 0:00:04]} Bc4 {[%emt 0:00:01]} 41. Nd2 {[%emt 0:00:05] [#] Hoping for Nxc4.} Be6 {[%emt 0:00:04]} 42. Nf3 {[%emt 0:00:03]} Bc4 {[%emt 0:00:01]} 43. Ne1 {[%emt 0:00:01]} Ke6 {[%emt 0:00:04]} 44. Ng2 {[%emt 0:00:05]} Kf6 {[%emt 0:00:04]} 45. Ne1 {[%emt 0:00:02]} Ke6 {[%emt 0:00:01]} 46. Nf3 {[%emt 0:00:03]} Kf6 {[%emt 0:00:03]} 47. Nd2 {[%emt 0:00:04] [#] And now Nxc4 would win.} Ba2 {[%emt 0:00:03]} 48. Kd3 {[%emt 0:00:06]} Ke6 {[%emt 0:00:01]} 49. Ke3 {[%emt 0:00:04]} Kf6 {[%emt 0:00:01] Weighted Error Value: White=0.06 (flawless) /Black=0.06 (flawless)} 1/2-1/2

[Event "Romanian Team Blitz Open 2022"]
[Site "Sebes"]
[Date "2022.12.04"]
[Round "3.26"]
[White "Coicev, Matei-Andrei"]
[Black "Tinta, Gheorghe"]
[Result "1-0"]
[ECO "A48"]
[WhiteElo "2009"]
[BlackElo "1855"]
[Annotator "TA"]
[PlyCount "121"]
[EventDate "2022.12.04"]
[EventType "blitz"]
[EventCountry "ROU"]
[SourceTitle "playchess.com"]
[Source "ChessBase"]
[SourceQuality "1"]
[TimeControl "180+2"]

{[%evp 15,121,-8,-10,-10,0,-10,0,-13,-22,-11,-9,-27,-27,-37,-36,-33,19,17,29,25,8,6,29,30,29,27,31,22,23,12,13,14,15,13,40,0,0,0,20,0,0,0,25,0,24,12,14,0,0,0,0,0,0,0,79,0,53,0,0,0,0,0,14,0,355,0,-1,-240,-222,-394,-367,-452,-445,-29983,-6219,-12838,-5302,-3627,-2943,-8743,-6817,-10560,-3678,-6446,-6838,-5400,-5494,-1336,-1235,-12841,-5904,-12841,-1158,-1244,-1522,-1433,12837,12838,12838,12839,12840,12840,12843,12843,12845,12843,12843,12843]} 1. Nf3 {[%emt 0:00:02]} g6 {[%emt 0:00:00]} 2. b3 {[%emt 0:00:03]} Bg7 {[%emt 0:00:01]} 3. d4 {[%emt 0:00:01]} c5 {[%emt 0:00:02]} 4. e3 {[%emt 0:00:01]} cxd4 {[%emt 0:00:05]} 5. exd4 {[%emt 0:00:01]} Nf6 {[%emt 0:00:08]} 6. Bb2 {[%emt 0:00:01]} O-O {[%emt 0:00:02]} 7. Be2 {[%emt 0:00:03]} d5 {[%emt 0:00:03]} 8. O-O {[%emt 0:00:02]} Nc6 {[%emt 0:00:04]} 9. h3 {[%emt 0:00:10] [#] A48: 1 d4 Nf6 2 Nf3 g6: Torre, London and Colle Systems.} Bd7 $146 {[%emt 0:00:03]} ({Predecessor:} 9... Ne4 10. Nbd2 Bf5 11. Re1 Rc8 12. c3 Re8 13. Nf1 Qa5 14. b4 Qd8 15. Ne3 a6 {1-0 (48) Zhao,X (2486)-Belenkaya,D (2297) Chess.com INT 2020}) 10. Ne5 {[%emt 0:00:08]} Rc8 {[%emt 0:00:14]} 11. Nxc6 {[%emt 0:00:02] The position is equal.} Bxc6 {[%emt 0:00:07]} 12. Nd2 {[%emt 0:00:02]} Re8 {[%emt 0:00:04]} 13. Nf3 {[%emt 0:00:01]} Ne4 {[%emt 0:00:07]} 14. Nd2 {[%emt 0:00:22]} e5 {[%emt 0:00:10]} 15. dxe5 {[%emt 0:00:08]} Nxd2 {[%emt 0:00:08]} (15... Bxe5 $15 16. Bxe5 Rxe5 17. Nxe4 dxe4) 16. Qxd2 $11 {[%emt 0:00:03] next f4 is good for White.} Bxe5 {[%emt 0:00:08]} 17. Bxe5 {[%emt 0:00:01]} Rxe5 {[%emt 0:00:01]} 18. Bg4 {[%emt 0:00:13]} f5 {[%emt 0:00:07]} 19. Bf3 {[%emt 0:00:01]} d4 {[%emt 0:00:11]} 20. Bxc6 {[%emt 0:00:05]} Rxc6 {[%emt 0:00:03]} 21. Rfe1 {[%emt 0:00:12]} Rec5 {[%emt 0:00:05]} 22. Rac1 {[%emt 0:00:02]} Kg7 {[%emt 0:00:08]} 23. Red1 {[%emt 0:00:42]} Rd6 {[%emt 0:00:22]} 24. Qb4 {[%emt 0:00:10]} b6 {[%emt 0:00:01]} (24... Qb6 $5 {[%cal Rb6b4]} 25. Rxd4 Qxb4 26. Rxb4 b6 $14) 25. Qd2 {[%emt 0:00:13]} h5 {[%emt 0:00:04]} 26. Qf4 {[%emt 0:00:04]} Qf6 {[%emt 0:00:06]} 27. Rd2 {[%emt 0:00:12]} g5 {[%emt 0:00:05]} 28. Qf3 {[%emt 0:00:02]} Kg6 {[%emt 0:00:06]} (28... g4 $5 {[%cal Rg4f3]} 29. Qf4 Qh6 30. Qxh6+ Kxh6 $11) 29. Rcd1 {[%emt 0:00:04][%cal Oc2c3]} Rcd5 {[%emt 0:00:15]} 30. Rd3 {[%emt 0:00:01]} g4 {[%emt 0:00:02]} 31. hxg4 {[%emt 0:00:02]} hxg4 {[%emt 0:00:02]} 32. Qf4 {[%emt 0:00:03][%cal Oc2c3]} Qe5 {[%emt 0:00:15]} 33. Qxe5 {[%emt 0:00:02]} Rxe5 {[%emt 0:00:00][%mdl 4096] Endgame KRR-KRR} 34. Kf1 {[%emt 0:00:10]} Red5 {[%emt 0:00:06]} (34... Rc6 $11 {remains equal.}) 35. g3 {[%emt 0:00:10]} (35. c4 $16 Re5 36. Rxd4 Rxd4 37. Rxd4) 35... Kf6 {[%emt 0:00:01]} ({Black should try} 35... Kg5 $11) 36. Ke2 {[%emt 0:00:01]} ({White should play} 36. c4 $1 $14 Ra5 37. a4) 36... Ke5 {[%emt 0:00:02]} 37. Kd2 {[%emt 0:00:06]} Rc5 {[%emt 0:00:03]} 38. Re1+ {[%emt 0:00:01]} Kd5 {[%emt 0:00:05]} 39. Re8 {[%emt 0:00:02]} Rdc6 $2 {[%emt 0:00:03][%mdl 8192]} (39... b5 $11) 40. Rd8+ $2 {[%emt 0:00:02]} (40. c4+ $18 Kd6 41. Rxd4+ Kc7 42. Re7+ Kb8 43. Rd8+ Rc8 44. Rdd7) 40... Ke6 {[%emt 0:00:02]} 41. Re8+ $2 {[%emt 0:00:12]} (41. c4 $11) 41... Kf7 $19 {[%emt 0:00:05]} 42. Ra8 $2 {[%emt 0:00:06]} (42. Re2 Rxc2+ 43. Ke1) 42... Rxc2+ {[%emt 0:00:01]} 43. Ke1 {[%emt 0:00:01]} Rxa2 {[%emt 0:00:06]} 44. Kf1 {[%emt 0:00:02] [#]} (44. Rd2 $19 Ra1+ 45. Ke2) 44... Rcc2 {[%emt 0:00:03]} (44... Rc1+ $142 45. Kg2 Raa1 46. Rxa7+ Rxa7 47. Rd2 d3 48. f3 Rc2 49. fxg4 fxg4 50. Kf2 Re7 51. Rxc2 dxc2 52. Kg2 c1=Q 53. Kf2 Qd2+ 54. Kg1 Re1#) 45. Rxd4 {[%emt 0:00:04]} Rxf2+ {[%emt 0:00:02]} (45... Rc1+ $142 46. Kg2 Raa1 47. Rxa7+ Rxa7) 46. Kg1 {[%emt 0:00:01]} Rfb2 {[%emt 0:00:06]} 47. Rd7+ {[%emt 0:00:03]} Ke6 {[%emt 0:00:01] [#] ( -> ...Rb1+)} 48. Rd1 {[%emt 0:00:02] Prevents Rb1.} Rg2+ {[%emt 0:00:02]} (48... Rxb3 $142 49. Re1+ Kf7) 49. Kh1 {[%emt 0:00:01]} Rxg3 {[%emt 0:00:01]} 50. Re8+ {[%emt 0:00:01]} Kf6 {[%emt 0:00:01]} 51. Rf8+ {[%emt 0:00:02]} Kg5 {[%emt 0:00:01] And now ...Rh3+ would win.} 52. b4 {[%emt 0:00:03]} Rh3+ {[%emt 0:00:02]} 53. Kg1 {[%emt 0:00:01]} g3 {[%emt 0:00:02]} 54. Rg8+ {[%emt 0:00:02]} Kf6 {[%emt 0:00:02] ...f4 is the strong threat.} 55. b5 {[%emt 0:00:01]} Rg2+ $4 {[%emt 0:00:03][%mdl 8192]} 56. Kxg2 $18 {[%emt 0:00:01] White is clearly winning.} Rh2+ {[%emt 0:00:04]} 57. Kxg3 {[%emt 0:00:01]} Rb2 {[%emt 0:00:01]} 58. Rf8+ {[%emt 0:00:02]} Ke7 {[%emt 0:00:01]} 59. Rxf5 {[%emt 0:00:02]} Rb3+ {[%emt 0:00:01]} 60. Kf2 {[%emt 0:00:02]} Rb2+ {[%emt 0:00:01]} 61. Ke3 {[%emt 0:00:01] Quite a comeback for White.   Weighted Error Value: White=0.82/Black=0.64} 1-0